Cogmind - Beta 14 @@@ ROGUE MODE // 2024.08.24 @ 18:15:09 Player: JohnnyDongs Result: Destroyed by B-75 Beast with Magnetic Acceleration Cannon Performance ------------- Evolutions (5) 2500 Regions Visited (14) 2800 Robots Destroyed (301) 1505 Value Destroyed (10047) 10047 Prototype IDs (40) 800 Alien Tech Used (0) 0 Bonus (2018) 2018 TOTAL SCORE: 19670 Bonus ------- High Alert Combat Kills 1640 Follower Combat Kills 352 Aligned with FarCom 300 Friendly Fire -274 Cogmind --------- Core Integrity 0/1000 Matter 300/300 Energy 83/100 System Corruption 89% Temperature Cool (14) Movement Flying (40) Location -5/Extension Parts ------- > --- POWER (2) -------- (None) > --- PROPULSION (4) --- Nuclear Pulse Array > --- UTILITY (7) ------ (None) > --- WEAPON (4) ------- (None) > --- INVENTORY (5) ---- Medium Armored Exoskeleton Combat Airjet Antigrav System Peak State ------------ > --- POWER ------------ Neutrino Core Micro Fission Core > --- PROPULSION ------- Carbon-fiber Leg Medium Armored Exoskeleton > --- UTILITY ---------- Advanced Heat Sink Huge Storage Unit Advanced Visual Processing Unit Matter Filter Layered Medium Armor Plating Advanced Hacking Suite Advanced Hacking Suite > --- WEAPON ----------- Wave Gun Gauss Rifle KE Penetrator Mass Driver > --- INVENTORY -------- Medium Treads Wheel Wheel Compact Wheel Combat Airjet Antigrav System Antigrav System Nuclear Pulse Array Power Amplifier Advanced Heat Sink Advanced Heat Sink Matter Compressor Matter Compressor Improved Focal Shield Thermal Shield Heavy Shock Bomb Launcher Improved Remote Datajack Great Maul [Rating: 93] Favorites ----------- Power Angular Momentum Engine Engine Angular Momentum Engine Power Core Light Nuclear Core Propulsion Improved Titanium Leg Treads Advanced Treads Leg Improved Titanium Leg Wheel Wheel Hover Unit Antigrav System Flight Unit Nuclear Pulse Array Utility High-capacity Storage Unit Device Advanced Heat Sink Storage High-capacity Storage Unit Processor Advanced Visual Processing Unit Hackware Advanced Hacking Suite Protection Improved Medium Armor Plating Weapon Autogun Energy Gun Shock Rifle Energy Cannon HERF Cannon Ballistic Gun Autogun Ballistic Cannon Mass Driver Launcher Heavy Shock Bomb Launcher Special Weapon Improved Remote Datajack Impact Weapon Great Maul Slashing Weapon Chainsword Build | -11 -10 -10 -9 -9 -9 -8 -8 -7 -7 -6 -6 -6 -5 -5 ------- Run | Yrd Mat Min Mat Min Exi Min Mat Fac Sto Fac Was Fac Fac Ext Slots Evolved 10 | . . . 2 . . . 2 2 . 2 . . 2 . Power 1 | . . . . . . . . . . 1 . . . . Propulsion 2 | . . . . . . . 1 . . 1 . . . . Utility 5 | . . . 2 . . . . 1 . . . . 2 . Weapon 2 | . . . . . . . 1 1 . . . . . . Parts Attached 348 | 5 10 1 11 1 2 4 37 49 25 7 4 36 98 58 Power 32 | 1 2 . . . . 1 2 3 4 1 . 5 7 6 Engine 18 | 1 1 . . . . . 2 1 3 1 . 5 3 1 Core 14 | . 1 . . . . 1 . 2 1 . . . 4 5 Reactor . | . . . . . . . . . . . . . . . Propulsion 71 | 2 1 . 6 . . . 5 8 . . 1 6 25 17 Treads 7 | . . . . . . . 1 2 . . . . 4 . Leg 26 | . . . . . . . . 3 . . 1 6 6 10 Wheel 30 | 2 1 . 5 . . . 4 2 . . . . 12 4 Hover 5 | . . . . . . . . . . . . . 3 2 Flight 3 | . . . 1 . . . . 1 . . . . . 1 Utility 96 | . 5 1 2 . . . 10 15 8 1 1 10 24 19 Device 46 | . 2 . 1 . . . 2 9 4 . . 3 13 12 Storage 4 | . 1 . . . . . . . . . . 1 . 2 Processor 15 | . 2 1 1 . . . 2 2 . . . 4 3 . Hackware 5 | . . . . . . . 1 . . 1 . . 2 1 Protection 26 | . . . . . . . 5 4 4 . 1 2 6 4 Artifact . | . . . . . . . . . . . . . . . Weapon 149 | 2 2 . 3 1 2 3 20 23 13 5 2 15 42 16 Energy Gun 46 | . . . . . . . . 12 2 . . 7 18 7 Energy Cannon 15 | . . . . . 1 . 3 2 1 . 1 2 5 . Ballistic Gun 41 | 2 2 . 2 . 1 2 7 2 8 3 . 2 8 2 Ballistic Cannon 14 | . . . . . . . 6 5 . . . . 2 1 Launcher 13 | . . . 1 . . 1 4 1 1 . . . 4 1 Special Weapon 2 | . . . . . . . . . . . 1 . . 1 Impact Weapon 12 | . . . . 1 . . . . . . . 2 5 4 Slashing Weapon 6 | . . . . . . . . 1 1 2 . 2 . . Piercing Weapon . | . . . . . . . . . . . . . . . Special Melee Weapon . | . . . . . . . . . . . . . . . Unidentified Prototypes 13 | . . . 1 . . . 3 3 4 . . 1 1 . Corrupted Parts 11 | . . . . . . 1 2 1 . . 1 1 2 3 System Corruption 63 | . . . . . . 3 16 1 . . 6 2 8 27 Parts Lost 112 | . 1 1 1 . . . 9 14 7 . 10 . 42 27 Power 15 | . 1 . . . . . 1 1 1 . 1 . 5 5 Propulsion 25 | . . . . . . . 3 4 . . 2 . 15 1 Utility 28 | . . 1 . . . . 1 2 3 . 2 . 8 11 Weapon 44 | . . . 1 . . . 4 7 3 . 5 . 14 10 Highest Loss Streak 17 | . 1 1 1 . . . 6 5 5 . 10 . 12 17 To Critical Strikes 1 | . . . . . . . . 1 . . . . . . Average Slot Usage (%) 88 | . 90 95 99 100 100 100 90 85 96 93 32 79 94 80 Engine 4 | . 3 . . . . . 2 3 4 6 2 9 7 1 Core 4 | . 10 14 11 11 11 11 5 2 2 6 2 . 2 6 Leg 11 | . . . . . . . . 7 23 20 7 23 14 9 Wheel 8 | . 27 28 22 22 22 22 22 5 . . . . 5 4 Device 11 | . 14 5 11 11 11 11 4 13 17 20 6 6 11 14 Storage 6 | . 2 14 11 11 11 11 9 7 7 6 1 1 5 6 Processor 7 | . 4 4 22 22 22 22 6 2 . . . 7 12 3 Hackware 3 | . . . . . . . 3 7 1 . 2 . 4 5 Protection 4 | . . . . . . . 9 2 8 5 . 7 2 3 Energy Gun 7 | . . . . . . . . 11 12 . . 13 8 4 Energy Cannon 1 | . . . . . 5 3 . . . . . . 2 . Ballistic Gun 10 | . 27 28 21 16 16 18 19 4 15 25 9 1 3 9 Ballistic Cannon 2 | . . . . . . . 4 8 . . . . 2 . Peak Build Rating 93 | 5 13 15 22 20 28 28 38 58 56 60 64 66 91 93 Average Rating 51 | 3 10 13 19 20 23 23 28 41 52 59 23 51 77 71 On Entrance 30 | . 5 12 15 20 20 28 21 32 53 56 60 2 62 75 Naked Turns 144 | . . . . . . . . . . . 79 25 . 40 Heaviest Build 155 | 7 52 52 52 52 59 59 87 86 93 85 82 130 155 141 Greatest Support 80 | 20 20 20 20 20 20 20 32 60 60 60 80 80 80 70 Greatest Overweight (x) 37 | . 2 2 2 2 2 2 5 24 1 1 1 1 37 4 Average Overweight (x) 1 | . . 2 2 2 2 2 1 3 1 1 . . 2 1 Largest Inventory Capacity 25 | 5 20 20 20 20 20 20 20 20 20 20 20 25 25 25 Average Capacity 19 | 5 7 20 20 20 20 20 20 20 20 20 9 8 25 24 Most Carried 25 | . 10 20 20 18 19 20 20 20 19 17 17 8 25 25 Average Carried 14 | . 4 15 18 18 18 19 18 15 15 16 8 5 16 16 Final Capacity 25 | 5 20 20 20 20 20 20 20 20 20 20 5 25 25 5 Final Carried 20 | . 10 20 18 18 19 19 17 18 17 17 5 7 18 5 Class Distribution -------------------- 20% | Skirmisher 19% | Mutant 17% | Scavenger-Skirmisher 11% | Scavenger-Tank 10% | Tank 9% | Scavenger-Gunner 6% | Scavenger-Mutant 5% | Scavenger-Assassin Dominant Class ---------------- Mutant | -10/Materials Mutant | -10/Mines Mutant | -9/Materials Mutant | -9/Mines Mutant | -9/Exiles Skirmisher | -8/Mines Tank | -8/Materials Skirmisher | -7/Factory Tank | -7/Storage Tank | -6/Factory Mutant | -6/Waste Scavenger-Tank | -6/Factory Scavenger-Gunner | -5/Factory Scavenger-Skirmisher | -5/Extension Resources | -11 -10 -10 -9 -9 -9 -8 -8 -7 -7 -6 -6 -6 -5 -5 ----------- Run | Yrd Mat Min Mat Min Exi Min Mat Fac Sto Fac Was Fac Fac Ext Matter Collected 10261 | 250 473 277 309 109 . 88 1338 2039 654 115 . 666 2609 1334 Remotely . | . . . . . . . . . . . . . . . Salvage Created 12810 | . 529 201 179 108 . 277 1329 2579 1426 156 . 836 3725 1465 Parts 664 | . 37 17 18 7 . 9 99 140 78 11 . 41 153 54 Haulers Intercepted 16 | . 1 . 2 . . . 2 5 4 . . . 2 . Recyclers Shooed 11 | . 2 . . . . . . 3 . . . . 4 2 Parts Field Recycled . | . . . . . . . . . . . . . . . Retrieved Matter . | . . . . . . . . . . . . . . . Parts Self-Destructed . | . . . . . . . . . . . . . . . Prevented . | . . . . . . . . . . . . . . . Kills | -11 -10 -10 -9 -9 -9 -8 -8 -7 -7 -6 -6 -6 -5 -5 ------- Run | Yrd Mat Min Mat Min Exi Min Mat Fac Sto Fac Was Fac Fac Ext Combat Hostiles Destroyed 190 | . 7 4 5 . . 3 33 43 19 2 . 11 43 20 Melee 6 | . . . . . . . . . . . . 4 1 1 Guns 99 | . 7 4 4 . . 2 15 16 17 2 . 5 15 12 Cannons 32 | . . . . . . . 4 19 . . . . 7 2 AOE 36 | . . . 1 . . 1 14 4 1 . . 1 14 . Classes Destroyed 19 | . 7 . . . . 2 4 5 1 . . . . . Worker 34 | . . . . . . 2 2 13 2 1 . . 14 . Builder 22 | . 1 . 2 1 . . 5 4 1 . . . 5 3 Tunneler 4 | . 1 1 . . . . . . . . . . 2 . Hauler 16 | . 1 . 2 . . . 2 5 4 . . . 2 . Recycler 16 | . 2 . . 1 . 1 . 4 1 . . 1 5 1 Mechanic 4 | . . . . . . . 2 1 . . . . 1 . Operator 3 | . . . . . . . . 1 1 . . 1 . . Drone 1 | . . . . . . . . . 1 . . . . . Watcher 16 | . 3 . . . . . 2 2 1 1 . 1 5 1 Swarmer 29 | . 3 . 5 . . . 14 1 3 . . . 3 . Grunt 90 | . 4 4 . . . 2 9 25 7 1 . 7 18 13 Brawler 3 | . . . . . . . . 1 . . . . 1 1 Duelist 9 | . . . . . . 1 . 3 1 . . . 3 1 Protector 1 | . . . . . . . . 1 . . . . . . Sentry 23 | . . . . . . . 8 4 7 . . . 1 3 Specialist 4 | . . . . . . . . 2 . . . 2 . . Hunter 9 | . . . . . . . 1 2 . . . . 6 . Programmer 20 | . . . . . . . . 3 1 1 . 2 11 2 Heavy 2 | . . . . . . . 1 1 . . . . . . Best Kill Streak 12 | . 6 2 5 2 . 6 12 10 5 2 . 4 10 4 Combat Bots Only 10 | . 2 2 2 . . 3 10 5 4 1 . 4 5 4 Max Kills in Single Turn 8 | . 1 1 2 1 . 4 4 3 2 1 . 1 8 2 Gunslinging . | . . . . . . . . . . . . . . . Exploded 3 | . . . 1 . . 1 2 2 1 . . 1 3 . Melee 1 | . . . . . . . . . . . . 1 1 1 Uniques/NPCs Destroyed . | . . . . . . . . . . . . . . . Combat | -11 -10 -10 -9 -9 -9 -8 -8 -7 -7 -6 -6 -6 -5 -5 -------- Run | Yrd Mat Min Mat Min Exi Min Mat Fac Sto Fac Was Fac Fac Ext Hostile Shots Fired 1777 | . 40 13 35 3 . 8 164 450 258 6 6 94 393 307 Missed 530 | . 22 3 15 . . 1 42 147 84 2 . 32 117 65 Damage Taken 19360 | . 203 179 245 39 . 109 2021 4008 1558 56 355 1220 5110 4257 Core 2429 | . 59 39 62 11 . 29 204 532 141 . 148 176 655 373 Absorbed by Shields 683 | . . . . . . . . . . 8 . . 280 395 Redirected to Shielding 92 | . . . . . . . 92 . . . . . . . Ignored by Resistances 340 | . . . . . . . 12 23 86 . . . 38 181 Regen/Repaired (Parts) 166 | . 12 . . . . . 75 . . . . . 79 . Core Remaining (%) 60 | 100 . 60 . . . 74 62 . 3 . . 61 . . Volleys Fired 644 | . 45 12 22 3 . 8 82 155 52 7 9 38 130 81 Largest 4 | . 2 2 2 2 . 2 3 4 4 4 4 4 4 4 Hottest 612 | . 46 46 46 46 . 60 117 288 220 109 116 215 612 225 Shots Fired 1659 | . 90 24 40 6 . 13 196 429 196 28 31 90 322 194 Gun 1297 | . 90 24 36 6 . 12 158 233 189 28 29 87 237 168 Cannon 323 | . . . . . . 1 27 193 7 . 1 3 80 11 Launcher 38 | . . . 4 . . . 11 3 . . . . 5 15 Special 1 | . . . . . . . . . . . 1 . . . Kinetic 1024 | . 90 24 36 6 . 12 181 263 100 28 29 14 113 128 Thermal 310 | . . . . . . . . 64 58 . . 19 118 51 Explosive 18 | . . . 4 . . . 11 3 . . . . . . Electromagnetic 306 | . . . . . . 1 4 99 38 . 1 57 91 15 Robot Hit Streak 24 | . 8 3 5 3 . 4 8 12 24 8 13 5 7 15 Robot Miss Streak 11 | . 4 3 3 1 . 3 9 10 3 5 2 3 11 5 Penetration Max 1 | . . . . . . . . 1 . . . . 1 1 Secondary Targets 13 | . 1 . 1 . . . 2 1 3 . . 1 1 3 Max Gunslinging Chain 1 | . 1 . 1 . . . 1 1 1 . . 1 1 1 Shots Hit Robots 978 | . 53 13 18 4 . 8 100 259 130 14 24 65 171 119 Core Hits 542 | . 21 7 14 2 . 8 73 133 56 8 3 35 123 59 Critical Kills 5 | . . . . . . 1 . . 1 . . . 3 . Critical Parts Destroyed 8 | . . . . . . . . . . . . . 5 3 Critical Strikes 37 | . . . . . . 1 . 6 5 . . 4 16 5 Burn 12 | . . . . . . . . . 3 . . 2 6 1 Destroy 5 | . . . . . . 1 . . 1 . . . 2 1 Blast 5 | . . . . . . . . 4 . . . . . 1 Corrupt 6 | . . . . . . . . 2 1 . . 1 2 . Smash 8 | . . . . . . . . . . . . . 6 2 Sever 1 | . . . . . . . . . . . . 1 . . Melee Attacks 137 | . . . . 7 . . . 3 1 7 . 34 31 54 Impact 104 | . . . . 7 . . . . . . . 12 31 54 Slashing 33 | . . . . . . . . 3 1 7 . 22 . . Piercing . | . . . . . . . . . . . . . . . Sneak Attacks 4 | . . . . . . . . . . . . 2 2 . Combat Hostiles . | . . . . . . . . . . . . . . . Follow-up Attacks . | . . . . . . . . . . . . . . . Damage Inflicted 29979 | . 876 210 493 62 . 503 3382 6567 2805 304 495 1924 8465 3893 Guns 15590 | . 873 210 253 62 . 126 1341 2652 2576 304 454 1076 3145 2518 Cannons 4971 | . . . . . . 10 274 2989 133 . . 8 1358 199 Explosions 7610 | . . . 240 . . 367 1767 926 96 . 41 255 3339 579 Melee 1757 | . . . . . . . . . . . . 585 575 597 Ramming 51 | . 3 . . . . . . . . . . . 48 . Kinetic 13040 | . 873 210 253 62 . 126 1595 3774 1352 304 454 221 1634 2182 Thermal 5762 | . . . . . . . 179 1127 943 . 36 435 2420 622 Explosive 2061 | . . . 240 . . . 1108 415 . . . . 298 . Electromagnetic 7308 | . . . . . . 377 500 1251 510 . 5 683 3490 492 Impact 1172 | . . . . . . . . . . . . . 575 597 Slashing 585 | . . . . . . . . . . . . 585 . . Piercing . | . . . . . . . . . . . . . . . Highest Corruption 89 | . . . . . . 5 31 10 11 . 20 34 49 89 Average Corruption 23 | . . . . . . 2 18 4 10 . 13 23 16 61 Corruption Purged . | . . . . . . . . . . . . . . . Corruption Blocked . | . . . . . . . . . . . . . . . Effects 437 | . . . . . . 2 31 27 38 . 8 89 116 126 Message Errors 88 | . . . . . . 2 7 7 12 . 1 18 17 24 Matter Fused 87 | . . . . . . . 6 6 3 . 2 21 27 22 Heat Flow Errors 37 | . . . . . . . 4 1 3 . . 12 12 5 Energy Discharges 56 | . . . . . . . 6 3 6 . . 13 17 11 Parts Rejected 8 | . . . . . . . . 1 2 . . . 4 1 Parts Fused 4 | . . . . . . . . 1 . . . . 2 1 Data Loss (minor) 48 | . . . . . . . 2 1 4 . 2 10 15 14 Data Loss (major) 16 | . . . . . . . 2 1 3 . . 2 3 5 Misfires 15 | . . . . . . . . 4 1 . . 4 5 1 Alerts 5 | . . . . . . . 1 . . . . 2 1 1 Misdirections 14 | . . . . . . . 2 . . . 2 . 2 8 Weapon Failures 59 | . . . . . . . 1 2 4 . 1 7 11 33 Overload Shots 8 | . . . . . . . . . . . . . 2 6 Overflow Damage 1130 | . . . 27 . . 14 130 102 . . . 79 585 193 Projectiles 116 | . . . . . . . 1 75 . . . . 40 . Explosions 483 | . . . 27 . . 14 129 27 . . . 55 194 37 Melee 531 | . . . . . . . . . . . . 24 351 156 Knockbacks 36 | . . . . . . . 2 14 . . . . 13 7 Impact 10 | . . . . . . . . . . . . . 6 4 Kinetic 24 | . . . . . . . 1 14 . . . . 7 2 Secondary 2 | . . . . . . . 1 . . . . . . 1 Self-Inflicted Damage 553 | . 1 . 19 . . . 70 90 . . 92 98 183 . Shots 12 | . . . 1 . . . 1 3 . . 2 1 4 . Rammed 1 | . 1 . . . . . . . . . . . . . Targets Rammed 3 | . 1 . . . . . . . . . . . 2 . Kicked 2 | . . . . . . . . . . . . . 2 . Crushed . | . . . . . . . . . . . . . . . Highest Temperature 690 | . 22 39 8 8 . 38 690 432 394 124 176 374 527 520 Average Temperature 128 | . 9 13 4 4 . 13 123 178 145 54 107 100 159 122 Received Heat Transfer 5650 | . 87 78 36 24 . 63 684 1059 477 . . 441 888 1813 Effects 47 | . . . . . . . 11 9 5 . . 1 12 9 Shutdowns 9 | . . . . . . . 1 . 1 . . 1 4 2 Energy Bleed 10 | . . . . . . . 3 3 . . . . 3 1 Interference 14 | . . . . . . . 1 4 3 . . . 3 3 Matter Decay 6 | . . . . . . . 4 1 . . . . 1 . Short Circuit 4 | . . . . . . . 1 . 1 . . . . 2 Damage (minor) 3 | . . . . . . . . 1 . . . . 1 1 Damage (major) 1 | . . . . . . . 1 . . . . . . . Siege Activations . | . . . . . . . . . . . . . . . Robots Corrupted 20 | . . . . . . . . 4 1 . . 1 9 5 Combat Hostiles 17 | . . . . . . . . 4 1 . . 1 6 5 Parts Fried 47 | . . . . . . 1 1 12 2 . . 1 27 3 Impact Corruptions 18 | . . . . . . . . . . . . . 12 6 Robots Melted . | . . . . . . . . . . . . . . . Combat Hostiles . | . . . . . . . . . . . . . . . Parts Melted 23 | . . . . . . . 1 3 6 . . . 10 3 Heat Transferred 10048 | . . . . . . . 150 2320 1863 . 50 824 3792 1049 Parts Sabotaged . | . . . . . . . . . . . . . . . Parts Stolen . | . . . . . . . . . . . . . . . Parts Stripped . | . . . . . . . . . . . . . . . Power Chain Reactions 10 | . . . . . . . . 1 2 . 1 1 1 4 Latent Energy Used 1860 | . . . . . . 120 755 151 . . 60 225 549 . LE Corruption 33 | . . . . . . 2 12 3 . . 1 5 10 . Alert | -11 -10 -10 -9 -9 -9 -8 -8 -7 -7 -6 -6 -6 -5 -5 ------- Run | Yrd Mat Min Mat Min Exi Min Mat Fac Sto Fac Was Fac Fac Ext Peak Influence 1272 | . 317 110 283 174 . 94 574 806 527 237 18 364 1272 824 Initial 623 | . . 45 19 109 . . 36 182 366 154 18 10 177 623 Average 338 | . 155 80 182 138 . 60 327 424 381 164 6 126 370 647 Maximum Alert Level 4 | . 1 . 1 . . . 2 3 2 1 . 1 4 3 Low Security (%) 40 | 100 71 100 38 100 . 100 11 23 2 89 100 75 48 . Level 1 24 | . 28 . 61 . . . 61 34 49 10 . 24 7 2 Level 2 23 | . . . . . . . 27 22 47 . . . 21 70 Level 3 9 | . . . . . . . . 19 . . . . 14 27 Level 4 1 | . . . . . . . . . . . . . 7 . Level 5 . | . . . . . . . . . . . . . . . High Security . | . . . . . . . . . . . . . . . Max Security . | . . . . . . . . . . . . . . . Squads Dispatched 65 | . . 1 1 . . . 5 19 5 1 . 12 13 8 Investigation 17 | . . 1 . . . . 4 . 1 . . 3 3 5 Extermination 12 | . . . . . . . . 3 1 1 . 2 5 . Reinforcement 22 | . . . 1 . . . 1 8 1 . . 6 3 2 Assault 5 | . . . . . . . . 1 . . . 1 2 1 Garrison 9 | . . . . . . . . 7 2 . . . . . Intercept . | . . . . . . . . . . . . . . . Searches Triggered . | . . . . . . . . . . . . . . . Construction Impeded 7 | . . . . . . . . 1 . . . 2 2 2 Haulers Reinforced 4 | . . . . . . . . 3 . . . 1 . . Active Scanning Responses . | . . . . . . . . . . . . . . . Cargo Convoy Interrupts 1 | . . . . . . . . . . . . . 1 . Stealth | -11 -10 -10 -9 -9 -9 -8 -8 -7 -7 -6 -6 -6 -5 -5 --------- Run | Yrd Mat Min Mat Min Exi Min Mat Fac Sto Fac Was Fac Fac Ext Distress Signals 20 | . 3 . 2 . . . 1 5 2 . . . 5 2 Communications Jammed . | . . . . . . . . . . . . . . . Distress Signals . | . . . . . . . . . . . . . . . Times Spotted 314 | . 16 4 13 3 . 2 44 61 26 6 6 20 71 42 Peak Tracking Total 8 | . 5 2 4 3 . 3 8 7 5 2 6 4 8 7 Tactical Retreats 15 | . 2 . . . . . 1 1 1 . . 2 3 5 Traps | -11 -10 -10 -9 -9 -9 -8 -8 -7 -7 -6 -6 -6 -5 -5 ------- Run | Yrd Mat Min Mat Min Exi Min Mat Fac Sto Fac Was Fac Fac Ext Traps Triggered 17 | . . 2 . . . . 5 2 1 1 . 3 . 3 Indirectly 3 | . . . . . . . . . . . . . . 3 Trap Hack Attempts . | . . . . . . . . . . . . . . . Triggered . | . . . . . . . . . . . . . . . Disarmed . | . . . . . . . . . . . . . . . Reprogrammed . | . . . . . . . . . . . . . . . Reused . | . . . . . . . . . . . . . . . Traps Extracted . | . . . . . . . . . . . . . . . Installed . | . . . . . . . . . . . . . . . Triggered 2 | . . . . . . . . . 1 . . . 1 . Machines | -11 -10 -10 -9 -9 -9 -8 -8 -7 -7 -6 -6 -6 -5 -5 ---------- Run | Yrd Mat Min Mat Min Exi Min Mat Fac Sto Fac Was Fac Fac Ext Machines Disabled 40 | . 1 . 3 . . . 6 1 1 . . 7 19 2 Max in Single Turn 7 | . 1 . 2 . . . 2 1 1 . . 4 7 1 Garrison Access 2 | . . . . . . . . . . . . 2 . . Machines Repaired . | . . . . . . . . . . . . . . . Machines Dismantled . | . . . . . . . . . . . . . . . Machines Sabotaged . | . . . . . . . . . . . . . . . Overloaded Fab Kills . | . . . . . . . . . . . . . . . Hacking | -11 -10 -10 -9 -9 -9 -8 -8 -7 -7 -6 -6 -6 -5 -5 --------- Run | Yrd Mat Min Mat Min Exi Min Mat Fac Sto Fac Was Fac Fac Ext Machines Accessed 56 | . 2 2 1 . 1 . 15 3 5 2 . 9 8 8 Terminals 31 | . . . 1 . . . 10 2 4 . . 3 4 7 Fabricators 2 | . . . . . . . . . . . . 1 1 . Repair Stations 4 | . 1 . . . . . 1 . . . . 1 1 . Recycling Units 9 | . 1 . . . . . 2 1 1 . . 1 2 1 Scanalyzers 4 | . . . . . . . 2 . . 1 . 1 . . Garrison Access 3 | . . . . . . . . . . 1 . 2 . . Total Hacks 154 | . 3 2 3 . 1 . 40 7 10 3 . 26 28 31 Successful 71 | . 3 2 . . 1 . 16 1 5 3 . 15 12 13 Failed 83 | . . . 3 . . . 24 6 5 . . 11 16 18 Catastrophic 19 | . . . 1 . . . 6 1 3 . . 2 3 3 Database Lockouts . | . . . . . . . . . . . . . . . Manual 44 | . . . . . 1 . 12 5 5 . . 3 13 5 Terminals 98 | . . . 3 . . . 30 5 9 . . 8 15 28 Fabricators 5 | . . . . . . . . . . . . 2 3 . Repair Stations 13 | . 2 . . . . . 2 . . . . 3 6 . Recycling Units 14 | . 1 . . . . . 2 2 1 . . 1 4 3 Scanalyzers 18 | . . . . . . . 6 . . 2 . 10 . . Garrison Access 3 | . . . . . . . . . . 1 . 2 . . Terminal Hacks 33 | . . 2 . . 1 . 9 1 4 . . 4 4 8 Record 8 | . . . . . . . 1 . . . . 2 2 3 Part Schematic 2 | . . . . . . . . . . . . 1 . 1 Robot Analysis 1 | . . . . . . . 1 . . . . . . . Prototype ID Bank 2 | . . . . . . . 2 . . . . . . . Open Door 3 | . . 2 . . . . . . 1 . . . . . Open DSF 1 | . . . . . . . . . . . . . 1 . Branch Access Points 2 | . . . . . . . 1 1 . . . . . . Alert Level 5 | . . . . . . . 1 . 1 . . 1 1 1 Unreport Threat 4 | . . . . . . . 2 . 1 . . . . 1 Dispatch Records 1 | . . . . . . . . . 1 . . . . . Maintenance Status 1 | . . . . . . . 1 . . . . . . . Recall Investigation 1 | . . . . . . . . . . . . . . 1 Hauler Manifests 1 | . . . . . . . . . . . . . . 1 Derelict Proto ID Bank 1 | . . . . . 1 . . . . . . . . . Fabricator Hacks 3 | . . . . . . . . . . . . 2 1 . Network Status 1 | . . . . . . . . . . . . . 1 . Load Schematic 1 | . . . . . . . . . . . . 1 . . Build 1 | . . . . . . . . . . . . 1 . . Repair Station Hacks 8 | . 2 . . . . . 2 . . . . 1 3 . Scan Component 5 | . 1 . . . . . 1 . . . . 1 2 . Repair 3 | . 1 . . . . . 1 . . . . . 1 . Recycling Unit Hacks 11 | . 1 . . . . . 2 . 1 . . 1 3 3 Recycle Component 1 | . . . . . . . . . . . . . . 1 Process 1 | . . . . . . . . . . . . . . 1 Report Inventory 8 | . 1 . . . . . 2 . 1 . . 1 2 1 Retrieve Components 1 | . . . . . . . . . . . . . 1 . Scanalyzer 11 | . . . . . . . 3 . . 2 . 6 . . Insert Component 7 | . . . . . . . 2 . . 1 . 4 . . Analyze 4 | . . . . . . . 1 . . 1 . 2 . . Garrison Access Hacks 2 | . . . . . . . . . . 1 . 1 . . Unlock Access 1 | . . . . . . . . . . 1 . . . . Seal Access 1 | . . . . . . . . . . . . 1 . . Unauthorized Hacks 3 | . . . . . . . . . . . . . 1 2 Terminals 3 | . . . . . . . . . . . . . 1 2 Botnet 3 | . . . . . . . . . . . . . 1 2 Fabricators . | . . . . . . . . . . . . . . . Repair Stations . | . . . . . . . . . . . . . . . Recycling Units . | . . . . . . . . . . . . . . . Scanalyzers . | . . . . . . . . . . . . . . . Garrison Access . | . . . . . . . . . . . . . . . Data Cores Recovered 1 | . . . . . . . . . . . . . . 1 Used 1 | . . . . . . . . . . . . . . 1 Hacking Detections 45 | . 2 . 1 . . . 12 2 4 1 . 8 7 8 Full Trace Events 14 | . . . . . . . 3 . . . . 3 3 5 Feedback Events 1 | . . . . . . . . . . . . 1 . . Corruption 1 | . . . . . . . . . . . . 1 . . Feedback Blocked . | . . . . . . . . . . . . . . . Robot Schematics Acquired . | . . . . . . . . . . . . . . . Robots Built . | . . . . . . . . . . . . . . . Authchips . | . . . . . . . . . . . . . . . Time . | . . . . . . . . . . . . . . . Total Robot Build Rating . | . . . . . . . . . . . . . . . Part Schematics Acquired 6 | . . . . . . . 1 . . 1 . 3 . 1 Parts Built 1 | . . . . . . . . . . . . 1 . . Authchips . | . . . . . . . . . . . . . . . Time 51 | . . . . . . . . . . . . 51 . . Total Part Build Rating 1 | . . . . . . . . . . . . 1 . . Parts Repaired 3 | . 1 . . . . . 1 . . . . . 1 . Time 93 | . 26 . . . . . 32 . . . . . 35 . Parts Recycled 1 | . . . . . . . . . . . . . . 1 Recycled Matter 9 | . . . . . . . . . . . . . . 9 Retrieved Matter . | . . . . . . . . . . . . . . . Retrieved Components 2 | . . . . . . . . . . . . . 2 . Parts Scanalyzed 4 | . . . . . . . 1 . . 1 . 2 . . Part Schematics Acquired 4 | . . . . . . . 1 . . 1 . 2 . . Parts Damaged . | . . . . . . . . . . . . . . . Bothacking | -11 -10 -10 -9 -9 -9 -8 -8 -7 -7 -6 -6 -6 -5 -5 ------------ Run | Yrd Mat Min Mat Min Exi Min Mat Fac Sto Fac Was Fac Fac Ext Used RIF Installer . | . . . . . . . . . . . . . . . Robots Hacked 1 | . . . . . . . . . . . 1 . . . Non-combat . | . . . . . . . . . . . . . . . Combat 1 | . . . . . . . . . . . 1 . . . Robot Hacks Applied 1 | . . . . . . . . . . . 1 . . . parse_system 1 | . . . . . . . . . . . 1 . . . Relay Couplers Released 2 | . . . . . . . . . . . . 2 . . Machine Destruction 2 | . . . . . . . . . . . . 2 . . Fabnet Peak Effective % . | . . . . . . . . . . . . . . . Robots Rewired . | . . . . . . . . . . . . . . . Allies Hacked . | . . . . . . . . . . . . . . . Hacks Repelled . | . . . . . . . . . . . . . . . Allies | -11 -10 -10 -9 -9 -9 -8 -8 -7 -7 -6 -6 -6 -5 -5 -------- Run | Yrd Mat Min Mat Min Exi Min Mat Fac Sto Fac Was Fac Fac Ext Total Allies 6 | . . . . 2 . . . . . . 1 . . 3 Largest Group 3 | . . . . 2 . . . . . . 1 . . 3 Highest-Rated Group 82 | . . . . 44 . . . . . . 31 . . 82 Highest-Rated Ally 31 | . . . . 31 . . . . . . 31 . . 31 Total Orders 3 | . . . . . . . . . 3 . . . . . EXPLORE 3 | . . . . . . . . . 3 . . . . . Ally Attacks 68 | . . . . 6 . . . . . . 5 . . 57 Total Damage 1154 | . . . . 107 . . . . . . 63 . . 984 Kills 12 | . . . . 2 . . . . . . . . . 10 Allies Corrupted . | . . . . . . . . . . . . . . . Allies Melted . | . . . . . . . . . . . . . . . Intel | -11 -10 -10 -9 -9 -9 -8 -8 -7 -7 -6 -6 -6 -5 -5 ------- Run | Yrd Mat Min Mat Min Exi Min Mat Fac Sto Fac Was Fac Fac Ext Robot Analysis Total 1 | . . . . . . . 1 . . . . . . . Derelict Logs Recovered 1 | . . 1 . . . . . . . . . . . . Drone Launches 16 | . . . . . . . . . 16 . . . . . Drone Recoveries 2 | . . . . . . . . . 2 . . . . . Exploration | -11 -10 -10 -9 -9 -9 -8 -8 -7 -7 -6 -6 -6 -5 -5 ------------- Run | Yrd Mat Min Mat Min Exi Min Mat Fac Sto Fac Was Fac Fac Ext Turns Passed 13697 | 30 439 428 213 184 237 61 1709 2171 911 460 143 1778 3410 1523 Spaces Moved 7023 | 29 313 342 128 137 212 33 1238 862 336 205 182 968 1442 596 Core 304 | 2 . . . . . . . 1 . . 166 55 1 79 Treads 82 | . . . . . . . . 67 . . . . 15 . Legs 2747 | . . . . . . . . 270 336 205 16 913 747 260 Wheels 3857 | 27 313 342 128 137 212 33 1238 524 . . . . 674 229 Hover 11 | . . . . . . . . . . . . . 5 6 Flight 22 | . . . . . . . . . . . . . . 22 Fastest Speed 40 | 50 80 110 110 110 110 110 98 135 200 200 50 50 116 40 Average Speed 143 | 77 85 110 110 110 110 110 111 181 200 200 60 128 173 161 Slowest Speed 1900 | 80 110 110 110 110 110 110 165 1250 200 200 200 195 1900 360 Overloaded Moves . | . . . . . . . . . . . . . . . Propulsion Burnouts . | . . . . . . . . . . . . . . . Robots Hopped . | . . . . . . . . . . . . . . . Cave-ins Triggered . | . . . . . . . . . . . . . . . Exploration Rate (%) 41 | 4 53 85 24 47 43 12 87 25 61 6 86 26 29 41 Regions Visited 14 Branch Regions 6 Pre-discovered Areas . | . . . . . . . . . . . . . . . Known Exits Taken 8 | . 1 1 1 1 1 1 1 1 . . . . . . Unknown Exits Taken 4 | 1 . . . . . . . . 1 . . 1 1 . Scrap Searched . | . . . . . . . . . . . . . . . Spaces Dug 34 | . . . . . . . . 3 . 7 . 11 13 . Terrain Destroyed 516 | . . . 47 . . 10 110 80 8 7 7 51 159 37 Melee 34 | . . . . . . . . 3 . 7 . 11 13 . Projectile 89 | . . . . . . . 1 30 . . . . 35 23 AOE 393 | . . . 47 . . 10 109 47 8 . 7 40 111 14 Terrain Rammed . | . . . . . . . . . . . . . . . Walls Destroyed . | . . . . . . . . . . . . . . . Machines Disabled . | . . . . . . . . . . . . . . . Actions | -11 -10 -10 -9 -9 -9 -8 -8 -7 -7 -6 -6 -6 -5 -5 --------- Run | Yrd Mat Min Mat Min Exi Min Mat Fac Sto Fac Was Fac Fac Ext Total 9151 | 33 411 375 167 151 214 45 1434 1146 449 230 196 1363 2042 895 Wait 676 | . 26 8 1 4 . . 34 19 14 2 . 256 271 41 Move 7010 | 28 312 341 127 136 211 32 1237 861 335 205 181 967 1441 596 Hop . | . . . . . . . . . . . . . . . Pick Up 123 | . 10 12 1 . 1 . 14 23 3 . 1 9 28 21 Fast Attach 158 | 5 10 . 2 . . . 17 23 13 1 2 25 44 16 Attach 127 | . . 1 5 . . . 11 19 9 2 2 7 40 31 Detach 74 | . 1 . 1 . . . 5 10 6 2 1 3 27 18 Swap 63 | . . . 4 1 2 4 9 7 3 4 . 4 14 11 Drop 118 | . 6 1 4 . . 1 25 25 7 . . 15 14 20 Fire 644 | . 45 12 22 3 . 8 82 155 52 7 9 38 130 81 Melee 137 | . . . . 7 . . . 3 1 7 . 34 31 54 Ram 1 | . 1 . . . . . . . . . . . . . Kick 2 | . . . . . . . . . . . . . 2 . Crush . | . . . . . . . . . . . . . . . Escape Stasis 11 | . . . . . . . . . . . . 5 . 6 Rewire 1 | . . . . . . . . 1 . . . . . . Trap . | . . . . . . . . . . . . . . . Miscellaneous 6 | . . . . . . . . . 6 . . . . . Route ------- -11/Scrapyard -10/Materials (discovered 2 exits: *Mat / *Min) -10/Mines (discovered 2 exits: *Mat x2) -9/Materials -9/Mines -9/Exiles -8/Mines -8/Materials (discovered 2 exits: *Fac x2) -7/Factory (discovered 5 exits: *Fac / *Sto x2 / Low x2) -7/Storage -6/Factory -6/Waste -6/Factory -5/Factory (discovered 2 exits: [*Upp] / *Ext) -5/Extension History --------- Turn | Location | Event 7 | -11/Scrapyard | Discovered new exit (range 15) 31 | -11/Scrapyard | Entered Materials 254 | -10/Materials | Repaired Wheel 269 | -10/Materials | Discovered new exit (range 15) 296 | -10/Materials | Discovered new exit (range 16) 314 | -10/Materials | Build established: Mutant 333 | -10/Materials | Identified exit to Mines 470 | -10/Materials | Entered Mines 488 | -10/Mines | Received a Rocket Launcher from a helpful Derelict 632 | -10/Mines | Met a Derelict who couldn't figure out how to use a Trap Extractor 742 | -10/Mines | Met a Derelict shopkeep closing up shop 822 | -10/Mines | Discovered new exit (range 7) 830 | -10/Mines | Identified exit to Materials 860 | -10/Mines | Learned 2 Materials zone layouts 893 | -10/Mines | Discovered exit to Materials (range 6) 898 | -10/Mines | Entered Materials 898 | -9/Materials | Evolved 2 slots: Utility x2 899 | -9/Materials | Identified exit to Mines 1023 | -9/Materials | Met 8R-AWN 1111 | -9/Materials | Entered Mines 1112 | -9/Mines | Met a Derelict bent on vengeance 1113 | -9/Mines | Followed 8R-AWN into the Mines 1206 | -9/Mines | Excavation squad dispatched 1206 | -9/Mines | A large section of the Mines collapsed 1289 | -9/Mines | Discovered new exit (range 5) 1293 | -9/Mines | Identified exit to Exiles 1295 | -9/Mines | Entered Exiles 1323 | -9/Exiles | Welcomed by 8R-AWN 1342 | -9/Exiles | Met EX-HEX 1375 | -9/Exiles | Met EX-BIN 1390 | -9/Exiles | Aligned with FarCom system 1392 | -9/Exiles | Given EX-Vault access code 1417 | -9/Exiles | Opened EX-Vault 1422 | -9/Exiles | Found Latent Energy Streamer 1446 | -9/Exiles | Warned to stay clear of 0b10 Research branches 1491 | -9/Exiles | Learned about 8R-AWN's background 1518 | -9/Exiles | Discovered new exit (range 14) 1530 | -9/Exiles | Identified exit to Mines 1532 | -9/Exiles | Left Exiles lab with Latent Energy Streamer 1532 | -9/Exiles | Entered Mines 1583 | -8/Mines | Discovered new exit (range 5) 1589 | -8/Mines | Identified exit to Materials 1593 | -8/Mines | Entered Materials 1593 | -8/Materials | Evolved 2 slots: Propulsion x1, Weapon x1 1889 | -8/Materials | Build established: Tank 2161 | -8/Materials | Discovered new exit (range 3) 2163 | -8/Materials | Identified exit to Factory 2677 | -8/Materials | Discovered exit to Factory (range 3) 2774 | -8/Materials | Repaired Maul 2843 | -8/Materials | System corruption reached 10% 2920 | -8/Materials | Destroyed 10 combat bots 2921 | -8/Materials | Lost 6 parts (1p1n1u3w) 3041 | -8/Materials | System corruption reached 30% 3302 | -8/Materials | Entered Factory 3302 | -7/Factory | Evolved 2 slots: Utility x1, Weapon x1 3328 | -7/Factory | Build established: Skirmisher 3564 | -7/Factory | Identified exit to Storage 3564 | -7/Factory | Identified exit to Lower Caves 3704 | -7/Factory | Garrison activated, responded to threat 3914 | -7/Factory | Lost 5 parts (1n1u3w) 4455 | -7/Factory | Garrison activated, responded to threat 4516 | -7/Factory | Core integrity fell below 50% 4574 | -7/Factory | Garrison activated, responded to threat 4870 | -7/Factory | Discovered new exit (range 13) 4902 | -7/Factory | First assault squad dispatched 5154 | -7/Factory | System corruption reached 10% 5473 | -7/Factory | Entered Storage 5619 | -7/Storage | Found Powered Armor 5799 | -7/Storage | Core integrity fell below 20% 5863 | -7/Storage | Lost 8 allies 5909 | -7/Storage | Lost 5 parts (1p2u2w) 6242 | -7/Storage | Garrison activated, responded to threat 6354 | -7/Storage | Discovered new exit (range 16) 6384 | -7/Storage | Entered Factory 6384 | -6/Factory | Evolved 2 slots: Power x1, Propulsion x1 6424 | -6/Factory | Build established: Tank 6555 | -6/Factory | Identified exit to Garrison 6844 | -6/Factory | Sucked down chute 6844 | -6/Factory | Entered Waste 6845 | -6/Waste | Met a frightened Derelict 6859 | -6/Waste | EMP discharged 6860 | -6/Waste | Spotted C-40 Crusher 6875 | -6/Waste | Spotted C-40 Crusher 6889 | -6/Waste | Crushed by Compactor (1 part destroyed, 2 dropped) 6892 | -6/Waste | Crushed by Compactor (1 part destroyed, 1 dropped) 6895 | -6/Waste | Crushed by Compactor (1 part destroyed, 1 dropped) 6898 | -6/Waste | Crushed by Compactor (1 part destroyed, 1 dropped) 6901 | -6/Waste | System corruption reached 10% 6903 | -6/Waste | Crushed by Compactor (1 part destroyed, 2 dropped) 6929 | -6/Waste | Crushed by Compactor (1 part destroyed) 6957 | -6/Waste | Spotted C-40 Crusher 6957 | -6/Waste | Spotted C-40 Crusher 6959 | -6/Waste | EMP discharged 6959 | -6/Waste | Spotted C-40 Crusher 6960 | -6/Waste | Lost 10 parts (1p2n2u5w) 6961 | -6/Waste | Spotted C-40 Crusher 6981 | -6/Waste | Discovered new exit (range 11) 6987 | -6/Waste | Entered Factory 7196 | -6/Factory | Build established: Mutant 7767 | -6/Factory | Build established: Scavenger-Assassin 8177 | -6/Factory | Build established: Scavenger-Tank 8219 | -6/Factory | Fabricated Huge Storage Unit? 8389 | -6/Factory | System corruption reached 30% 8636 | -6/Factory | Discovered new exit (range 19) 8765 | -6/Factory | Entered another Factory area 8765 | -5/Factory | Evolved 2 slots: Utility x2 9085 | -5/Factory | Repaired Broken Angular Momentum Engine 9129 | -5/Factory | Discovered new exit (range 9) 9489 | -5/Factory | Cargo convoy interrupted 9761 | -5/Factory | Build established: Scavenger-Gunner 10696 | -5/Factory | System corruption reached 10% 10733 | -5/Factory | Lost 12 parts (2p3n3u4w) 10994 | -5/Factory | Build established: Scavenger-Skirmisher 11165 | -5/Factory | First assault squad dispatched 11382 | -5/Factory | Found Prototype Launcher 11382 | -5/Factory | Identified Tesla Bomb Launcher 11519 | -5/Factory | System corruption reached 30% 11543 | -5/Factory | Lost 6 parts (2p1n1u2w) 11709 | -5/Factory | Core integrity fell below 50% 11752 | -5/Factory | Lost 9 parts (1p3n2u3w) 11871 | -5/Factory | Lost 8 parts (4n2u2w) 11921 | -5/Factory | Lost 3 parts (1n2w) 12082 | -5/Factory | Discovered new exit (range 12) 12175 | -5/Factory | Entered Extension 12337 | -5/Extension | Rescued a captive Derelict 12575 | -5/Extension | Rescued a captive Derelict 12576 | -5/Extension | Rescued a captive Derelict 12862 | -5/Extension | Spotted B-75 Beast 13075 | -5/Extension | First assault squad dispatched 13091 | -5/Extension | Lost 3 parts (2u1w) 13245 | -5/Extension | Core integrity fell below 20% 13298 | -5/Extension | Lost 17 parts (3p1n7u6w) 13639 | -5/Extension | Build established: Scavenger-Mutant 13639 | -5/Extension | Released all parts (14) 13698 | -5/Extension | Destroyed by B-75 Beast with Magnetic Acceleration Cannon Last Messages --------------- 13639_ Released Adv. Heat Sink. 13639_ Released Mic. Fission Core. 13639_ Released Carbon-fiber Leg. 13639_ Released Imp. Remote Datajack. 13645_ System corrupted: Matter fused (-8). 13660_ System corrupted: Matter fused (-5). 13676_ Acquired 13 matter. 13678_ Acquired Antigrav System. 13679_ T7 QEYJWIZDA3 BOZH1JFU/3ILR%U1LTPHCLEWF 13679_ Acquired 10 matter. 13683_ Acquired Corrupted Cmb. Airjet. 13683_ Integrated Corrupted Cmb. Airjet (+8). 13685_ Dropped Com. Wheel. 13685_ Dropped Unknown Treads. 13687_ Acquired Corrupted Nuclear Pulse Array. 13687_ Integrated Corrupted Nuclear Pulse Array (+9). 13690_ Acquired 20 matter. [Achievement: Just Browsing] [Achievement: Achiever] Map ----- +----------------------------------------------------+ | #?????????????????????????????????????????????? | | ############??????????????????????????????????? | | + #??????????????????????????????????? | | ########## #??????????????????????????????????? | | ####????????# #?### ##??????????????????????????? | | #???######### #?###"###??##??????????????????????? | | ##### # #%= #### ##?????????????????????? | | #####+########?????????????????????? | | % %% % ###????????????????????? | | %= # #????????????????????? | | ##### = ####???????????????????? | | #??## |# #???????????????????? | | #???# % % ####???????????????????? | | ????# %% ! # #???????????????????? | | ????#################%%%= ####???????????????????? | | ?????##### #### =*# = # #????????????????????? | | ???????###???### # # #?????????????????? | | ??????????????## # % ######?????????????????? | | ??????????????## # ##?????????????????????? | | ???????????????# + ##?????????????????????? | | ???????????????# # ^^ ##?????????????????????? | | ???????????????# # ##?????????????????????? | | ???????????????# # ##?????????????????????? | | ???????????????# + #??????????????????????? | | ???????????????##########%#??????????????????????? | | ??????????????????????###@#??????????????????????? | | ????????????????????????# #??????????????????????? | | ????????????????????????# #??????????????????????? | | ????????????????????????# #??????????????????????? | | ????????????????????????" "??????????????????????? | | ????????????????????????" ??????????????????????? | | ???????????????????????? ??????????????????????? | | ???????????????????????? ??????????????????????? | | ???????????????????????? ??????????????????????? | | ???????????????????????? ??????????????????????? | | ??????????????????????? ?????????????????????? | | ???????????????????????? ?????????????????????? | | ???????????????????????? ?????????????????????? | | ???????????????????????? A ?????????????????????? | | ???????????????????????? B???????BB?????????????? | | ???????????????????????? B???????BB?????????????? | | ?????????????????????????????????????????????????? | | ?????????????????????????????????????????????????? | | ?????????????????????????????????????????????????? | | ?????????????????????????????????????????????????? | | ?????????????????????????????????????????????????? | | ?????????????????????????????????????????????????? | | | | | | | +----------------------------------------------------+ Best States ------------- Heat Dissipation 97 Energy Generation 32 Energy Capacity 525 Matter Stores 550 Matter Capacity 550 Sight Range 20 Robot Scan Range 16 Terrain Scan Range 16 Terrain Scan Density 85 Base Temperature (-) 100 Armor Coverage 700 Resistance: KI 25 Resistance: TH 20 Weapon Shielding 66 Evasion (%) 62 Targeting Accuracy 8 Target Analysis 6 Core Analysis 9 Recoil Reduction 2 Matter Filtering 30 Energy Filtering 30 Offensive Hacking 28 Defensive Hacking 10 Item Schematics ----------------- Reactive Plating | -8/Materials | Scanalyzed Enh. Autogun | -6/Factory | Scanalyzed Adv. Signal Interpreter | -6/Factory | Scanalyzed Hcp. Matter Pod | -6/Factory | Scanalyzed Huge Storage Unit | -6/Factory | Hacked Hardcell Cannon | -5/Extension | Hacked Robot Schematics ------------------ None Fabricated ------------ Huge Storage Unit | x1 | -6/Factory Alien Tech Used ----------------- None Achievements -------------- Achiever Close Call GoHome() Just Browsing Release The Drones! True Hacker Z1$+NX3F=JRE3_ZNQR Challenges ------------ None Game ------ Seed EtherialImprinterDriver Manual? 0 Play Time 04:29:40 Cumulative 27.0 hours Start 2024.08.19 @ 23:32:01 End 2024.08.24 @ 18:15:09 Sessions 8 Manual Loads 0 Difficulty Rogue Special Mode None Game No. 19 Rogue 19 Adventurer 0 Explorer 0 Win Type - Total 0 Types 0/0/0/0/0/0/0/0/0 Lore% 13 Gallery% 25 Achievement% 26 Wizard Run 0 Options --------- Layout 1 ASCII 0 Keyboard 0 Movement Numpad Keybinds 0 Fullscreen 1 Font 24/Smallcaps Map View 50x35 Zoom Use 0% Tactical HUD 1 Map Filters NONE Filters NONE Steam 1 RUN: bfbf6c2d-78e4-4b77-89c6-6541fbc4b41a